fUSD/lending_fUSD_20250219
["ID","MTS","AMOUNT","RATE_DAILY","PERIOD"]
[353644209,1739980234648,-500.0,0.00013253,2]
[353644210,1739980234658,-500.0,0.00013253,2]
[353644211,1739980234668,-500.0,0.00013253,2]
[353644212,1739980234678,-1250.71,0.00013253,2]
[353644213,1739980234688,-500.0,0.00013253,2]
[353644214,1739980234697,-2834.32,0.00013253,2]
[353644215,1739980234706,-500.0,0.00013253,2]
[353644216,1739980234715,-500.0,0.00013253,2]
[353644217,1739980234724,-578.11,0.00013253,2]
[353644218,1739980234734,-500.0,0.00013253,2]
[353644219,1739980234743,-500.0,0.00013253,2]
[353644220,1739980234752,-500.0,0.00013253,2]
[353644221,1739980234762,-500.0,0.00013253,2]
[353644222,1739980234771,-3592.94,0.00013253,2]
[353644223,1739980234782,-1156.14,0.00013253,2]
[353644224,1739980234791,-500.0,0.00013253,2]
[353644225,1739980234800,-500.0,0.00013253,2]
[353644226,1739980234811,-500.0,0.00013253,2]
[353644227,1739980234823,-500.0,0.00013253,2]
[353644228,1739980234832,-514.56878493,0.00013253,2]
[353644229,1739980234842,-500.0,0.00013253,2]
[353644230,1739980234853,-500.0,0.00013253,2]
[353644231,1739980234862,-2305.82,0.00013253,2]
[353644232,1739980234872,-500.0,0.00013253,2]
[353644233,1739980234881,-2543.42,0.00013253,2]
[353644234,1739980234890,-500.0,0.00013253,2]
[353644235,1739980234901,-500.0,0.00013253,2]
[353644236,1739980234910,-500.0,0.00013253,2]
[353644237,1739980234920,-2150.21,0.00013253,2]
[353644238,1739980234929,-500.0,0.00013253,2]
[353644239,1739980234939,-500.0,0.00013253,2]
[353644240,1739980234949,-500.0,0.00013253,2]
[353644241,1739980234959,-500.0,0.00013253,2]
[353644242,1739980234968,-500.0,0.00013253,2]
[353644243,1739980234977,-1270.53,0.00013253,2]
[353644244,1739980234987,-500.0,0.00013253,2]
[353644245,1739980234996,-500.0,0.00013253,2]
[353644246,1739980235006,-605.41520154,0.00013253,2]
[353644247,1739980235015,-500.0,0.00013253,2]
[353644248,1739980235025,-3077.72,0.00013253,2]
[353644249,1739980235035,-2849.11,0.00013253,2]
[353644250,1739980235044,-500.0,0.00013253,2]
[353644251,1739980235054,-500.0,0.00013253,2]
[353644252,1739980235063,-500.0,0.00013253,2]
[353644253,1739980235073,-500.0,0.00013253,2]
[353644254,1739980235083,-500.0,0.00013253,2]
[353644255,1739980235092,-1872.52,0.00013253,2]
[353644256,1739980235102,-500.0,0.00013253,2]
[353644257,1739980235111,-500.0,0.00013253,2]
[353644258,1739980235121,-2655.66966356,0.00013253,2]
[353644261,1739980238114,-1019.45160052,0.00012,2]
[353644262,1739980238126,-654.925,0.00012,2]
[353644263,1739980238138,-1113.81235035,0.00012,2]
[353644264,1739980238149,-755.72030286,0.00012,2]
[353644266,1739980238242,-4702.34503447,0.00012,2]
[353644268,1739980238252,-500.0,0.00013253,2]
[353644270,1739980238261,-500.0,0.00013253,2]
[353644272,1739980238273,-2449.58,0.00013253,2]
[353644274,1739980238283,-5703.57239055,0.00013253,2]
[353644276,1739980238293,-66986.22116291,0.00013254,2]
[353644278,1739980238302,-631.48725845,0.0001326,2]
[353644280,1739980238312,-994.45,0.00013261,2]
[353644282,1739980238321,-706.55681524,0.00013261,2]
[353644284,1739980238331,-1923.17318476,0.00013261,2]
[353644286,1739980238340,-152.680738,0.00013261,2]
[353644288,1739980238350,-500.0,0.00013261,2]
[353644290,1739980238360,-1713.47,0.00013261,2]
[353644292,1739980238369,-1696.75,0.00013261,2]
[353644294,1739980238379,-653.38,0.00013261,2]
[353644295,1739980238388,-1647.385589,0.00013261,2]
[353644297,1739980238398,-1723.42,0.00013261,2]
[353644299,1739980238407,-1309.75,0.00013261,2]
[353644301,1739980238417,-1547.774012,0.00013261,2]
[353644304,1739980238427,-2249.32,0.00013261,2]
[353644307,1739980238436,-159.64705,0.00013261,2]
[353644309,1739980238446,-2062.67,0.00013261,2]
[353644310,1739980238455,-879.26,0.00013261,2]
[353644311,1739980238465,-4177.59,0.00013261,2]
[353644312,1739980238475,-500.0,0.00013261,2]
[353644313,1739980238484,-1812.8,0.00013261,2]
[353644314,1739980238494,-2153.58,0.00013261,2]
[353644315,1739980238504,-1723.78,0.00013261,2]
[353644316,1739980238514,-2582.72,0.00013261,2]
[353644317,1739980238526,-2429.87,0.00013261,2]
[353644318,1739980238536,-6064.21517121,0.00013261,2]
[353644319,1739980238548,-1414.49482879,0.00013261,2]
[353644320,1739980238558,-1629.03,0.00013261,2]
[353644321,1739980238568,-1391.87,0.00013261,2]
[353644323,1739980238579,-2749.44,0.00013261,2]
[353644325,1739980238588,-3165.16,0.00013261,2]
[353644327,1739980238598,-1001.8,0.00013261,2]
[353644329,1739980238609,-1910.62,0.00013261,2]
[353644331,1739980238619,-2035.08,0.00013261,2]
[353644333,1739980238630,-500.0,0.00013261,2]
[353644335,1739980238639,-2295.63,0.00013261,2]
[353644337,1739980238649,-2927.08,0.00013261,2]
[353644339,1739980238658,-3425.17,0.00013261,2]
[353644341,1739980238667,-1619.53,0.00013261,2]
[353644343,1739980238676,-500.0,0.00013261,2]
[353644345,1739980238686,-2354.18,0.00013261,2]
[353644347,1739980238695,-25974.11954725,0.00013261,3]
[353644349,1739980238705,-500.0,0.00013262,2]
[353644351,1739980238715,-500.0,0.00013262,2]
[353644353,1739980238724,-500.0,0.00013262,2]
[353644355,1739980238733,-1458.09,0.00013262,2]
[353644357,1739980238743,-500.0,0.00013262,2]
[353644359,1739980238752,-500.0,0.00013262,2]
[353644361,1739980238762,-1092.62,0.00013262,2]
[353644363,1739980238775,-500.0,0.00013262,2]
[353644365,1739980238785,-500.0,0.00013262,2]
[353644367,1739980238794,-500.0,0.00013262,2]
[353644369,1739980238803,-1190.12,0.00013262,2]
[353644371,1739980238816,-500.0,0.00013262,2]
[353644373,1739980238826,-372.82554367,0.00013262,2]
[353644375,1739980238837,-500.0,0.00013262,2]
[353644377,1739980238846,-895.46,0.00013262,2]
[353644379,1739980238858,-500.0,0.00013262,2]
[353644381,1739980238867,-784.94,0.00013262,2]
[353644383,1739980238877,-637.95,0.00013262,2]
[353644385,1739980238887,-500.0,0.00013262,2]
[353644387,1739980238897,-687.74,0.00013262,2]
[353644389,1739980238906,-500.0,0.00013262,2]
[353644390,1739980238915,-507.82,0.00013262,2]
[353644393,1739980238924,-498.49548242,0.00013262,2]
[353644395,1739980238933,-726.93,0.00013262,2]
[353644396,1739980238943,-500.0,0.00013262,2]
[353644398,1739980238952,-500.0,0.00013262,2]
[353644401,1739980238963,-1286.78,0.00013262,2]
[353644403,1739980238972,-500.0,0.00013262,2]
[353644405,1739980238982,-557.08,0.00013262,2]
[353644407,1739980238991,-721.45,0.00013262,2]
[353644409,1739980239001,-1401.36,0.00013262,2]
[353644410,1739980239010,-500.0,0.00013262,2]
[353644413,1739980239021,-747.29,0.00013262,2]
[353644415,1739980239031,-500.0,0.00013262,2]
[353644416,1739980239040,-867.44,0.00013262,2]
[353644418,1739980239049,-500.0,0.00013262,2]
[353644420,1739980239059,-1195.28,0.00013262,2]
[353644422,1739980239069,-752.35,0.00013262,2]
[353644424,1739980239078,-500.0,0.00013262,2]
[353644426,1739980239088,-502.99944854,0.00013262,2]
[353644428,1739980239097,-500.0,0.00013262,2]
[353644430,1739980239107,-500.0,0.00013262,2]
[353644432,1739980239116,-1161.26,0.00013262,2]
[353644434,1739980239125,-504.75345063,0.00013262,2]
[353644437,1739980239143,-865.43,0.00013262,2]
[353644440,1739980239154,-504.41787358,0.00013262,2]
[353644442,1739980239164,-500.0,0.00013262,2]
[353644444,1739980239174,-500.0,0.00013262,2]
[353644445,1739980239183,-2952.84,0.00013262,2]
[353644448,1739980239193,-1520.74,0.00013262,2]
[353644449,1739980239202,-500.0,0.00013262,2]
[353644452,1739980239213,-500.0,0.00013262,2]
[353644453,1739980239222,-500.0,0.00013262,2]
[353644455,1739980239232,-1389.09,0.00013262,2]
[353644458,1739980239241,-1261.26,0.00013262,2]
[353644460,1739980239251,-500.0,0.00013262,2]
[353644462,1739980239261,-500.0,0.00013262,2]
[353644464,1739980239273,-500.0,0.00013262,2]
[353644466,1739980239283,-2369.94,0.00013262,2]
[353644468,1739980239292,-500.0,0.00013262,2]
[353644470,1739980239302,-635.93,0.00013262,2]
[353644472,1739980239312,-488.48310354,0.00013262,2]
[353644503,1739980239612,-500.0,0.00013262,2]
[353644505,1739980239622,-4234.44,0.00013262,2]
[353644507,1739980239632,-500.0,0.00013262,2]
[353644509,1739980239641,-515.85,0.00013262,2]
[353644511,1739980239651,-627.38969889,0.00013262,2]
[353644513,1739980239661,-1520.01,0.00013262,2]
[353644515,1739980239671,-500.0,0.00013262,2]
[353644517,1739980239681,-535.89314852,0.00013262,2]
[353644519,1739980239690,-2040.61,0.00013262,2]
[353644521,1739980239701,-3618.38,0.00013262,2]
[353644523,1739980239710,-1320.65,0.00013262,2]
[353644525,1739980239720,-500.0,0.00013262,2]
[353644527,1739980239729,-500.0,0.00013262,2]
[353644529,1739980239738,-1337.76,0.00013262,2]
[353644532,1739980239747,-500.0,0.00013262,2]
[353644534,1739980239757,-500.0,0.00013262,2]
[353644536,1739980239766,-778.29,0.00013262,2]
[353644538,1739980239777,-3790.17,0.00013262,2]
[353644540,1739980239787,-500.0,0.00013262,2]
[353644542,1739980239798,-922.19,0.00013262,2]
[353644544,1739980239808,-1000.86,0.00013262,2]
[353644546,1739980239821,-2840.14,0.00013262,2]
[353644548,1739980239830,-3981.52,0.00013262,2]
[353644550,1739980239839,-500.0,0.00013262,2]
[353644552,1739980239848,-2700.62,0.00013262,2]
[353644554,1739980239859,-1149.61,0.00013262,2]
[353644556,1739980239870,-1617.88,0.00013262,2]
[353644558,1739980239879,-500.0,0.00013262,2]
[353644560,1739980239890,-2135.79,0.00013262,2]
[353644562,1739980239900,-2787.85,0.00013262,2]
[353644564,1739980239909,-500.0,0.00013262,2]
[353644566,1739980239918,-2235.44,0.00013262,2]
[353644568,1739980239928,-153.65022207,0.00013262,2]
[353644570,1739980239937,-500.0,0.00013262,2]
[353644572,1739980239946,-616.54,0.00013262,2]
[353644574,1739980239956,-1061.23,0.00013262,2]
[353644576,1739980239966,-829.31,0.00013262,2]
[353644578,1739980239976,-2663.5,0.00013262,2]
[353644580,1739980239986,-500.0,0.00013262,2]
[353644582,1739980239995,-910.22,0.00013262,2]
[353644584,1739980240005,-2159.86,0.00013262,2]
[353644587,1739980240014,-1233.58,0.00013262,2]
[353644590,1739980240024,-777.69,0.00013262,2]
[353644593,1739980240034,-500.0,0.00013262,2]
[353644595,1739980240044,-1260.78,0.00013262,2]
[353644597,1739980240054,-500.0,0.00013262,2]
[353644599,1739980240063,-2098.66,0.00013262,2]
[353644601,1739980240073,-500.0,0.00013262,2]
[353644603,1739980240083,-1304.89,0.00013262,2]
[353644605,1739980240093,-500.0,0.00013262,2]
[353644607,1739980240102,-2217.17,0.00013262,2]
[353644609,1739980240111,-500.0,0.00013262,2]
[353644611,1739980240120,-500.0,0.00013262,2]
[353644613,1739980240129,-1229.31,0.00013262,2]
[353644614,1739980240138,-629.86084348,0.00013262,2]
[353644616,1739980240147,-500.0,0.00013262,2]
[353644618,1739980240156,-1125.78,0.00013262,2]
[353644619,1739980240165,-702.0,0.00013262,2]
[353644621,1739980240175,-500.0,0.00013262,2]
[353644623,1739980240185,-2142.63,0.00013262,2]
[353644625,1739980240195,-991.41,0.00013262,2]
[353644627,1739980240205,-500.0,0.00013262,2]
[353644629,1739980240215,-1297.65,0.00013262,2]
[353644631,1739980240224,-500.0,0.00013262,2]
[353644633,1739980240233,-2450.69,0.00013262,2]
[353644635,1739980240243,-502.46229094,0.00013262,2]
[353644637,1739980240252,-951.81,0.00013262,2]
[353644639,1739980240262,-2491.3,0.00013262,2]
[353644641,1739980240272,-500.0,0.00013262,2]
[353644643,1739980240283,-3121.4,0.00013262,2]
[353644645,1739980240293,-987.22,0.00013262,2]
[353644647,1739980240302,-1808.05,0.00013262,2]
[353644649,1739980240312,-500.0,0.00013262,2]
[353644651,1739980240322,-617.21,0.00013262,2]
[353644653,1739980240331,-2674.01,0.00013262,2]
[353644655,1739980240341,-865.7,0.00013262,2]
[353644657,1739980240351,-3424.34,0.00013262,2]
[353644659,1739980240360,-606.69548748,0.00013262,2]
[353644660,1739980240370,-935.39,0.00013262,2]
[353644661,1739980240379,-716.66,0.00013262,2]
[353644663,1739980240388,-7104.58,0.00013262,2]
[353644665,1739980240397,-32.82095068,0.00013262,2]
[353644748,1739980241346,-166.00085197,0.00013153,2]
[353644750,1739980241356,-1007.78,0.00013253,2]
[353644752,1739980241365,-371.23199654,0.00013253,2]
[353644754,1739980241377,-128.76800346,0.00013253,2]
[353644756,1739980241386,-210.30334844,0.00013262,2]
[353644758,1739980241397,-256.87570088,0.00013262,2]
[353644760,1739980241407,-500.0,0.00013262,2]
[353644762,1739980241416,-349.4838081,0.00013262,2]
[353644765,1739980241428,-342.52280004,0.00013262,2]
[353644772,1739980241490,-135.02339186,0.00013262,2]
[353644774,1739980241500,-557.87737169,0.00013262,2]
[353644776,1739980241509,-500.0,0.00013262,2]
[353644778,1739980241519,-1293.08,0.00013262,2]
[353644780,1739980241528,-500.0,0.00013262,2]
[353644782,1739980241538,-500.0,0.00013262,2]
[353644784,1739980241547,-1376.92,0.00013262,2]
[353644786,1739980241557,-1452.96,0.00013262,2]
[353644788,1739980241567,-588.57091692,0.00013262,2]
[353644790,1739980241576,-500.0,0.00013262,2]
[353644792,1739980241586,-500.0,0.00013262,2]
[353644794,1739980241596,-500.0,0.00013262,2]
[353644796,1739980241605,-2762.23,0.00013262,2]
[353644798,1739980241614,-500.0,0.00013262,2]
[353644800,1739980241624,-500.0,0.00013262,2]
[353644802,1739980241633,-500.0,0.00013262,2]
[353644804,1739980241642,-500.0,0.00013262,2]
[353644806,1739980241652,-500.0,0.00013262,2]
[353644807,1739980241660,-1557.63,0.00013262,2]
[353644809,1739980241670,-864.3,0.00013262,2]
[353644811,1739980241679,-500.0,0.00013262,2]
[353644813,1739980241688,-550.15,0.00013262,2]
[353644815,1739980241698,-461.25831953,0.00013262,2]
[353645147,1739980244811,-500.0,0.00013253,2]
[353645149,1739980244824,-500.0,0.00013253,2]
[353645151,1739980244834,-38.74168047,0.00013262,2]
[353645153,1739980244844,-1033.56,0.00013262,2]
[353645155,1739980244853,-1330.68,0.00013262,2]
[353645157,1739980244865,-499.99535576,0.00013262,2]
[353645159,1739980244874,-1874.18,0.00013262,2]
[353645160,1739980244883,-500.0,0.00013262,2]
[353645162,1739980244895,-500.0,0.00013262,2]
[353645164,1739980244904,-500.0,0.00013262,2]
[353645166,1739980244914,-500.0,0.00013262,2]
[353645168,1739980244923,-607.15,0.00013262,2]
[353645170,1739980244932,-564.7,0.00013262,2]
[353645171,1739980244941,-500.0,0.00013262,2]
[353645173,1739980244950,-770.74,0.00013262,2]
[353645175,1739980244960,-500.0,0.00013262,2]
[353645177,1739980244970,-1204.42,0.00013262,2]
[353645179,1739980244979,-500.0,0.00013262,2]
[353645181,1739980244988,-538.43991762,0.00013262,2]
[353645182,1739980244998,-1706.76,0.00013262,2]
[353645184,1739980245007,-789.73,0.00013262,2]
[353645186,1739980245017,-500.0,0.00013262,2]
[353645188,1739980245026,-1064.77,0.00013262,2]
[353645190,1739980245035,-2036.97,0.00013262,2]
[353645191,1739980245045,-2846.68,0.00013262,2]
[353645193,1739980245055,-723.33,0.00013262,2]
[353645195,1739980245064,-500.0,0.00013262,2]
[353645197,1739980245073,-1000.0,0.00013262,2]
[353645199,1739980245083,-501.42376727,0.00013262,2]
[353645201,1739980245091,-661.32,0.00013262,2]
[353645202,1739980245100,-500.0,0.00013262,2]
[353645204,1739980245110,-500.0,0.00013262,2]
[353645206,1739980245119,-210.35627093,0.00013262,2]
[353645208,1739980245129,-500.0,0.00013262,2]
[353645210,1739980245138,-504.22330116,0.00013262,2]
[353645211,1739980245147,-500.0,0.00013262,2]
[353645213,1739980245157,-208.24962684,0.00013262,2]
[353645215,1739980245166,-500.0,0.00013262,2]
[353645217,1739980245175,-620.14162512,0.00013262,2]
[353645219,1739980245185,-500.0,0.00013262,2]
[353645221,1739980245195,-500.0,0.00013262,2]
[353645222,1739980245204,-500.0,0.00013262,2]
[353645224,1739980245214,-500.0,0.00013262,2]
[353645226,1739980245224,-620.37275678,0.00013262,2]
[353645228,1739980245234,-500.0,0.00013262,2]
[353645230,1739980245244,-637.79640035,0.00013262,2]
[353645232,1739980245254,-500.0,0.00013262,2]
[353645234,1739980245263,-500.0,0.00013262,2]
[353645235,1739980245273,-500.0,0.00013262,2]
[353645236,1739980245283,-500.0,0.00013262,2]
[353645237,1739980245293,-500.0,0.00013262,2]
[353645239,1739980245302,-500.0,0.00013262,2]
[353645241,1739980245311,-500.0,0.00013262,2]
[353645243,1739980245321,-500.0,0.00013262,2]
[353645245,1739980245331,-500.0,0.00013262,2]
[353645247,1739980245341,-500.0,0.00013262,2]
[353645249,1739980245350,-500.0,0.00013262,2]
[353645251,1739980245360,-500.0,0.00013262,2]
[353645253,1739980245370,-500.0,0.00013262,2]
[353645255,1739980245379,-500.0,0.00013262,2]
[353645257,1739980245389,-500.0,0.00013262,2]
[353645259,1739980245399,-500.0,0.00013262,2]
[353645261,1739980245408,-500.0,0.00013262,2]
[353645263,1739980245418,-252.44291813,0.00013262,2]
[353645265,1739980245427,-500.0,0.00013262,2]
[353645267,1739980245437,-500.0,0.00013262,2]
[353645270,1739980245446,-500.0,0.00013262,2]
[353645273,1739980245455,-500.0,0.00013262,2]
[353645275,1739980245465,-500.0,0.00013262,2]
[353645277,1739980245474,-500.0,0.00013262,2]
[353645279,1739980245483,-500.0,0.00013262,2]
[353645281,1739980245492,-500.0,0.00013262,2]
[353645283,1739980245504,-500.0,0.00013262,2]
[353645285,1739980245514,-500.0,0.00013262,2]
[353645286,1739980245523,-500.0,0.00013262,2]
[353645287,1739980245532,-500.0,0.00013262,2]
[353645288,1739980245542,-500.0,0.00013262,2]
[353645289,1739980245552,-500.0,0.00013262,2]
[353645290,1739980245561,-500.00000001,0.00013262,2]
[353645291,1739980245571,-933.48,0.00013263,2]
[353645292,1739980245580,-1192.81,0.00013263,2]
[353645293,1739980245590,-500.0,0.00013263,2]
[353645294,1739980245599,-584.37,0.00013263,2]
[353645295,1739980245608,-742.66,0.00013263,2]
[353645296,1739980245618,-522.28,0.00013263,2]
[353645297,1739980245627,-1182.47,0.00013263,2]
[353645298,1739980245636,-500.0,0.00013263,2]
[353645299,1739980245646,-604.71,0.00013263,2]
[353645300,1739980245656,-825.59,0.00013263,2]
[353645301,1739980245666,-555.18,0.00013263,2]
[353645302,1739980245675,-744.1,0.00013263,2]
[353645303,1739980245684,-500.0,0.00013263,2]
[353645304,1739980245694,-549.02,0.00013263,2]
[353645305,1739980245703,-853.49,0.00013263,2]
[353645307,1739980245712,-1139.43,0.00013263,2]
[353645309,1739980245721,-500.0,0.00013263,2]
[353645311,1739980245731,-500.0,0.00013263,2]
[353645313,1739980245742,-500.0,0.00013263,2]
[353645315,1739980245753,-500.0,0.00013263,2]
[353645316,1739980245764,-1431.08,0.00013263,2]
[353645318,1739980245774,-500.0,0.00013263,2]
[353645321,1739980245785,-500.0,0.00013263,2]
[353645324,1739980245794,-483.30665721,0.00013263,2]
[353645326,1739980245804,-500.0,0.00013263,2]
[353645328,1739980245814,-707.79,0.00013263,2]
[353645330,1739980245825,-625.5,0.00013263,2]
[353645332,1739980245835,-500.0,0.00013263,2]
[353645334,1739980245844,-500.0,0.00013263,2]
[353645336,1739980245854,-500.0,0.00013263,2]
[353645338,1739980245865,-500.57214654,0.00013263,2]
[353645340,1739980245875,-500.0,0.00013263,2]
[353645342,1739980245884,-500.0,0.00013263,2]
[353645344,1739980245896,-500.0,0.00013263,2]
[353645346,1739980245906,-500.0,0.00013263,2]
[353645348,1739980245916,-500.0,0.00013263,2]
[353645350,1739980245925,-260.26621049,0.00013263,2]
[353645352,1739980245935,-500.0,0.00013263,2]
[353645354,1739980245945,-500.0,0.00013263,2]
[353645356,1739980245956,-609.63,0.00013263,2]
[353645358,1739980245966,-623.02,0.00013263,2]
[353645360,1739980245976,-500.0,0.00013263,2]
[353645362,1739980245986,-500.0,0.00013263,2]
[353645364,1739980245995,-638.38,0.00013263,2]
[353645366,1739980246004,-713.66,0.00013263,2]
[353645368,1739980246014,-500.0,0.00013263,2]
[353645370,1739980246024,-500.0,0.00013263,2]
[353645372,1739980246034,-500.0,0.00013263,2]
[353645374,1739980246042,-500.0,0.00013263,2]
[353645376,1739980246051,-500.0,0.00013263,2]
[353645378,1739980246062,-799.79,0.00013263,2]
[353645380,1739980246071,-500.0,0.00013263,2]
[353645382,1739980246081,-500.0,0.00013263,2]
[353645384,1739980246091,-500.0,0.00013263,2]
[353645386,1739980246102,-500.0,0.00013263,2]
[353645388,1739980246111,-902.71,0.00013263,2]
[353645390,1739980246121,-500.0,0.00013263,2]
[353645392,1739980246131,-739.56,0.00013263,2]
[353645394,1739980246140,-505.03281762,0.00013263,2]
[353645396,1739980246149,-500.0,0.00013263,2]
[353645398,1739980246159,-500.0,0.00013263,2]
[353645400,1739980246168,-500.0,0.00013263,2]
[353645402,1739980246178,-1328.91,0.00013263,2]
[353645404,1739980246187,-500.0,0.00013263,2]
[353645406,1739980246197,-500.0,0.00013263,2]
[353645408,1739980246207,-850.64,0.00013263,2]
[353645411,1739980246216,-664.21,0.00013263,2]
[353645412,1739980246225,-500.0,0.00013263,2]
[353645415,1739980246237,-769.8,0.00013263,2]
[353645416,1739980246246,-506.53681326,0.00013263,2]
[353645418,1739980246256,-500.0,0.00013263,2]
[353645420,1739980246266,-500.0,0.00013263,2]
[353645422,1739980246276,-500.0,0.00013263,2]
[353645424,1739980246286,-500.0,0.00013263,2]
[353645426,1739980246295,-500.0,0.00013263,2]
[353645428,1739980246305,-500.0,0.00013263,2]
[353645430,1739980246314,-509.24,0.00013263,2]
[353645432,1739980246324,-500.0,0.00013263,2]
[353645434,1739980246334,-777.04,0.00013263,2]
[353645436,1739980246343,-579.94,0.00013263,2]
[353645438,1739980246352,-561.48,0.00013263,2]
[353645440,1739980246362,-500.0,0.00013263,2]
[353645442,1739980246372,-500.0,0.00013263,2]
[353645444,1739980246381,-500.0,0.00013263,2]
[353645446,1739980246391,-500.0,0.00013263,2]
[353645448,1739980246400,-538.81,0.00013263,2]
[353645450,1739980246409,-500.0,0.00013263,2]
[353645452,1739980246418,-570.86,0.00013263,2]
[353645454,1739980246428,-865.81,0.00013263,2]
[353645456,1739980246438,-500.0,0.00013263,2]
[353645458,1739980246447,-500.0,0.00013263,2]
[353645460,1739980246456,-500.0,0.00013263,2]
[353645462,1739980246466,-516.54581176,0.00013263,2]
[353645464,1739980246475,-500.0,0.00013263,2]
[353645466,1739980246485,-500.0,0.00013263,2]
[353645468,1739980246494,-500.0,0.00013263,2]
[353645470,1739980246504,-500.0,0.00013263,2]
[353645472,1739980246514,-500.0,0.00013263,2]
[353645474,1739980246524,-613.5374111,0.00013263,2]
[353645476,1739980246534,-500.0,0.00013263,2]
[353645478,1739980246543,-500.0,0.00013263,2]
[353645480,1739980246553,-503.18298192,0.00013263,2]
[353645482,1739980246562,-500.0,0.00013263,2]
[353645484,1739980246571,-571.45,0.00013263,2]
[353645486,1739980246581,-764.23,0.00013263,2]
[353645488,1739980246590,-500.0,0.00013263,2]
[353645490,1739980246599,-500.0,0.00013263,2]
[353645492,1739980246609,-1552.87,0.00013263,2]
[353645494,1739980246618,-500.0,0.00013263,2]
[353645496,1739980246627,-500.0,0.00013263,2]
[353645498,1739980246636,-500.0,0.00013263,2]
[353645500,1739980246646,-500.0,0.00013263,2]
[353645502,1739980246655,-513.61,0.00013263,2]
[353645504,1739980246664,-506.13,0.00013263,2]
[353645506,1739980246673,-500.0,0.00013263,2]
[353645508,1739980246682,-500.0,0.00013263,2]
[353645510,1739980246691,-525.24666923,0.00013263,2]
[353645512,1739980246701,-751.94,0.00013263,2]
[353645514,1739980246710,-500.0,0.00013263,2]
[353645516,1739980246719,-500.0,0.00013263,2]
[353645518,1739980246728,-500.0,0.00013263,2]
[353645520,1739980246737,-500.0,0.00013263,2]
[353645522,1739980246746,-511.3389512,0.00013263,2]
[353645524,1739980246755,-500.0,0.00013263,2]
[353645526,1739980246765,-500.0,0.00013263,2]
[353645528,1739980246775,-1068.44,0.00013263,2]
[353645530,1739980246784,-500.0,0.00013263,2]
[353645532,1739980246794,-500.0,0.00013263,2]
[353645534,1739980246804,-500.0,0.00013263,2]
[353645536,1739980246816,-811.68,0.00013263,2]
[353645538,1739980246827,-842.89,0.00013263,2]
[353645540,1739980246836,-510.00496611,0.00013263,2]
[353645542,1739980246845,-500.0,0.00013263,2]
[353645544,1739980246855,-500.0,0.00013263,2]
[353645546,1739980246864,-500.0,0.00013263,2]
[353645548,1739980246874,-507.93358603,0.00013263,2]
[353645550,1739980246883,-500.0,0.00013263,2]
[353645552,1739980246893,-500.0,0.00013263,2]
[353645554,1739980246903,-500.0,0.00013263,2]
[353645556,1739980246912,-513.92,0.00013263,2]
[353645558,1739980246921,-759.59,0.00013263,2]
[353645560,1739980246931,-569.96,0.00013263,2]
[353645562,1739980246940,-500.0,0.00013263,2]
[353645564,1739980246952,-977.53,0.00013263,2]